fUST/lending_fUST_20241024
["ID","MTS","AMOUNT","RATE_DAILY","PERIOD"]
[340746102,1729771841935,-2949.193419,0.00025,7]
[340746104,1729771841946,-415.373519,0.00025,7]
[340746106,1729771841955,-2949.193419,0.00025,7]
[340746108,1729771841965,-415.373519,0.00025,7]
[340746110,1729771841974,-151.0,0.00025,7]
[340746112,1729771841983,-166.593986,0.00025,7]
[340746114,1729771841999,-166.593986,0.00025,7]
[340746116,1729771842009,-151.0,0.00025,7]
[340746118,1729771842019,-151.0,0.00025,7]
[340746120,1729771842030,-151.0,0.00025,7]
[340746122,1729771842040,-151.0,0.00025,7]
[340746124,1729771842049,-949.11885,0.00025,7]
[340746127,1729771842060,-949.11885,0.00025,7]
[340746129,1729771842071,-262.605908,0.00025,7]
[340746131,1729771842080,-151.0,0.00025,7]
[340746133,1729771842090,-151.0,0.00025,7]
[340746135,1729771842100,-583.269613,0.00025,7]
[340746137,1729771842110,-583.269613,0.00025,7]
[340746139,1729771842120,-326.138783,0.00025,7]
[340746141,1729771842130,-326.138783,0.00025,7]
[340746143,1729771842139,-435.673014,0.00025,7]
[340746145,1729771842149,-435.673014,0.00025,7]
[340746147,1729771842158,-874.02080626,0.00025,30]
[340746149,1729771842169,-544.1040164,0.00025105,2]
[340746151,1729771842179,-500.0,0.00025417,2]
[340746153,1729771842188,-9006.77738361,0.00025492,3]
[340746155,1729771842198,-26095.8654854,0.00025492,3]
[340746157,1729771842208,-583.269613,0.00025492,7]
[340746159,1729771842218,-583.269613,0.00025492,7]
[340746161,1729771842227,-326.138783,0.00025492,7]
[340746163,1729771842238,-326.138783,0.00025492,7]
[340746165,1729771842249,-435.673014,0.00025492,7]
[340746167,1729771842259,-435.673014,0.00025492,7]
[340746169,1729771842270,-435.673014,0.00025492,7]
[340746171,1729771842280,-435.673014,0.00025492,7]
[340746173,1729771842290,-949.11885,0.00025493,7]
[340746175,1729771842299,-949.11885,0.00025493,7]
[340746177,1729771842309,-151.0,0.00025493,7]
[340746179,1729771842318,-151.0,0.00025493,7]
[340746181,1729771842328,-583.269613,0.00025493,7]
[340746183,1729771842337,-583.269613,0.00025493,7]
[340746185,1729771842347,-326.138783,0.00025493,7]
[340746187,1729771842357,-326.138783,0.00025493,7]
[340746189,1729771842368,-500.0,0.000255,2]
[340746190,1729771842378,-302.05936685,0.000255,2]
[340746192,1729771842387,-502.02096792,0.000255,2]
[340746194,1729771842397,-152.178944,0.00025502,7]
[340746196,1729771842407,-151.0,0.00025502,7]
[340746198,1729771842416,-151.0,0.00025502,7]
[340746200,1729771842426,-151.0,0.00025502,7]
[340746202,1729771842436,-151.0,0.00025502,7]
[340746204,1729771842445,-151.0,0.00025502,7]
[340746206,1729771842455,-152.099757,0.00025502,7]
[340746209,1729771842465,-151.0,0.00025502,7]
[340746211,1729771842476,-151.0,0.00025502,7]
[340746213,1729771842485,-218.858192,0.00025502,7]
[340746215,1729771842498,-151.0,0.00025502,7]
[340746217,1729771842513,-151.0,0.00025502,7]
[340746219,1729771842522,-151.0,0.00025502,7]
[340746221,1729771842532,-187.858704,0.00025502,7]
[340746223,1729771842542,-187.858704,0.00025502,7]
[340746225,1729771842552,-466.628105,0.00025502,7]
[340746227,1729771842562,-466.628105,0.00025502,7]
[340746229,1729771842572,-151.0,0.00025502,7]
[340746231,1729771842582,-854.028115,0.00025502,7]
[340746233,1729771842591,-854.028115,0.00025502,7]
[340746235,1729771842601,-151.0,0.00025502,7]
[340746237,1729771842610,-415.373519,0.00025502,7]
[340746239,1729771842619,-2949.193419,0.00025502,7]
[340746241,1729771842630,-2949.193419,0.00025502,7]
[340746244,1729771842639,-415.373519,0.00025502,7]
[340746246,1729771842649,-151.0,0.00025502,7]
[340746248,1729771842658,-166.593986,0.00025502,7]
[340746250,1729771842667,-166.593986,0.00025502,7]
[340746252,1729771842676,-151.0,0.00025502,7]
[340746254,1729771842686,-151.0,0.00025502,7]
[340746256,1729771842695,-151.0,0.00025502,7]
[340746258,1729771842705,-500.0,0.00025517,2]
[340746260,1729771842714,-160.67257132,0.00025517,2]
[340746262,1729771842724,-500.0,0.00025517,2]
[340746264,1729771842735,-485.39248746,0.00025517,2]
[340746266,1729771842745,-500.0,0.00025517,2]
[340746268,1729771842755,-319.98988545,0.00025517,2]
[340746270,1729771842764,-500.0,0.00025517,2]
[340746272,1729771842775,-151.0,0.0002557,7]
[340746274,1729771842785,-176.952204,0.0002557,7]
[340746276,1729771842794,-415.373519,0.0002557,7]
[340746278,1729771842804,-415.373519,0.0002557,7]
[340746280,1729771842814,-166.593986,0.0002557,7]
[340746282,1729771842824,-166.593986,0.0002557,7]
[340746284,1729771842833,-949.11885,0.0002557,7]
[340746286,1729771842843,-949.11885,0.0002557,7]
[340746288,1729771842852,-151.0,0.0002557,7]
[340746290,1729771842862,-151.0,0.0002557,7]
[340746292,1729771842871,-157.394711,0.0002558,7]
[340746295,1729771842881,-157.394711,0.0002558,7]
[340746297,1729771842891,-151.0,0.0002558,7]
[340746299,1729771842901,-152.361355,0.0002558,7]
[340746302,1729771842910,-153.04309,0.0002558,7]
[340746304,1729771842923,-151.0,0.0002558,7]
[340746306,1729771842933,-151.0,0.0002558,7]
[340746308,1729771842942,-151.0,0.0002558,7]
[340746310,1729771842952,-151.0,0.0002558,7]
[340746312,1729771842963,-151.0,0.0002558,7]
[340746314,1729771842972,-151.0,0.0002558,7]
[340746316,1729771842982,-151.0,0.0002558,7]
[340746318,1729771842994,-229.858974,0.0002558,7]
[340746320,1729771843003,-151.0,0.0002558,7]
[340746322,1729771843013,-151.0,0.0002558,7]
[340746324,1729771843022,-151.0,0.0002558,7]
[340746326,1729771843031,-151.0,0.0002558,7]
[340746328,1729771843041,-187.858704,0.0002558,7]
[340746330,1729771843051,-187.858704,0.0002558,7]
[340746333,1729771843068,-187.858704,0.0002558,7]
[340746335,1729771843080,-187.858704,0.0002558,7]
[340746337,1729771843091,-466.628105,0.0002558,7]
[340746339,1729771843101,-466.628105,0.0002558,7]
[340746341,1729771843111,-466.628105,0.0002558,7]
[340746342,1729771843121,-466.628105,0.0002558,7]
[340746344,1729771843130,-151.0,0.0002558,7]
[340746346,1729771843140,-151.0,0.0002558,7]
[340746348,1729771843150,-854.028115,0.0002558,7]
[340746350,1729771843159,-854.028115,0.0002558,7]
[340746352,1729771843169,-854.028115,0.0002558,7]
[340746354,1729771843179,-854.028115,0.0002558,7]
[340746356,1729771843188,-2949.193419,0.0002558,7]
[340746358,1729771843204,-415.373519,0.0002558,7]
[340746360,1729771843254,-2949.193419,0.0002558,7]
[340746362,1729771843364,-415.373519,0.0002558,7]
[340746364,1729771843470,-2949.193419,0.0002558,7]
[340746366,1729771843579,-2949.193419,0.0002558,7]
[340746368,1729771843665,-415.373519,0.0002558,7]
[340746370,1729771843771,-415.373519,0.0002558,7]
[340746371,1729771843852,-151.0,0.0002558,7]
[340746374,1729771843958,-301.233989,0.0002558,7]
[340746376,1729771844066,-166.593986,0.0002558,7]
[340746377,1729771844111,-166.593986,0.0002558,7]
[340746378,1729771844123,-166.593986,0.0002558,7]
[340746380,1729771844133,-166.593986,0.0002558,7]
[340746382,1729771844143,-151.0,0.0002558,7]
[340746384,1729771844153,-151.0,0.0002558,7]
[340746386,1729771844162,-151.0,0.0002558,7]
[340746388,1729771844172,-297.075753,0.0002558,7]
[340746390,1729771844181,-265.484293,0.0002558,7]
[340746392,1729771844191,-117.39396144,0.0002558,7]
[340746442,1729771844796,-831.72488856,0.0002558,7]
[340746444,1729771844806,-949.11885,0.0002558,7]
[340746446,1729771844815,-151.0,0.0002558,7]
[340746447,1729771844826,-151.0,0.0002558,7]
[340746449,1729771844836,-583.269613,0.0002558,7]
[340746450,1729771844846,-583.269613,0.0002558,7]
[340746452,1729771844856,-583.269613,0.0002558,7]
[340746454,1729771844866,-583.269613,0.0002558,7]
[340746456,1729771844875,-583.269613,0.0002558,7]
[340746457,1729771844885,-583.269613,0.0002558,7]
[340746458,1729771844895,-326.138783,0.0002558,7]
[340746460,1729771844906,-326.138783,0.0002558,7]
[340746462,1729771844919,-326.138783,0.0002558,7]
[340746464,1729771844930,-326.138783,0.0002558,7]
[340746466,1729771844940,-326.138783,0.0002558,7]
[340746467,1729771844949,-326.138783,0.0002558,7]
[340746468,1729771844961,-435.673014,0.0002558,7]
[340746470,1729771844972,-435.673014,0.0002558,7]
[340746472,1729771844982,-435.673014,0.0002558,7]
[340746474,1729771844993,-435.673014,0.0002558,7]
[340746476,1729771845003,-435.673014,0.0002558,7]
[340746477,1729771845014,-435.673014,0.0002558,7]
[340746479,1729771845023,-1038.40781295,0.0002558,3]
[340746481,1729771845036,-7968.36957066,0.0002558,3]
[340746483,1729771845047,-26095.8654854,0.0002558,3]
[340746485,1729771845057,-157.394711,0.0002559,7]
[340746487,1729771845067,-157.394711,0.0002559,7]
[340746489,1729771845078,-157.394711,0.0002559,7]
[340746491,1729771845090,-157.394711,0.0002559,7]
[340746493,1729771845100,-151.0,0.0002559,7]
[340746495,1729771845110,-151.0,0.0002559,7]
[340746497,1729771845119,-151.0,0.0002559,7]
[340746499,1729771845128,-151.0,0.0002559,7]
[340746501,1729771845138,-231.602099,0.0002559,7]
[340746503,1729771845148,-151.0,0.0002559,7]
[340746505,1729771845159,-151.0,0.0002559,7]
[340746507,1729771845170,-151.0,0.0002559,7]
[340746509,1729771845180,-151.0,0.0002559,7]
[340746511,1729771845191,-187.858704,0.0002559,7]
[340746513,1729771845200,-187.858704,0.0002559,7]
[340746515,1729771845210,-187.858704,0.0002559,7]
[340746517,1729771845220,-187.858704,0.0002559,7]
[340746519,1729771845229,-466.628105,0.0002559,7]
[340746520,1729771845239,-466.628105,0.0002559,7]
[340746522,1729771845249,-466.628105,0.0002559,7]
[340746524,1729771845260,-466.628105,0.0002559,7]
[340746526,1729771845270,-151.0,0.0002559,7]
[340746527,1729771845281,-151.0,0.0002559,7]
[340746529,1729771845291,-854.028115,0.0002559,7]
[340746531,1729771845302,-854.028115,0.0002559,7]
[340746533,1729771845312,-854.028115,0.0002559,7]
[340746534,1729771845322,-854.028115,0.0002559,7]
[340746535,1729771845333,-2949.193419,0.0002559,7]
[340746537,1729771845343,-415.373519,0.0002559,7]
[340746539,1729771845353,-564.58332804,0.0002559,7]
[340746542,1729771845366,-2384.61009096,0.0002559,7]
[340746544,1729771845375,-415.373519,0.0002559,7]
[340746546,1729771845385,-2949.193419,0.0002559,7]
[340746547,1729771845395,-415.373519,0.0002559,7]
[340746549,1729771845406,-2949.193419,0.0002559,7]
[340746551,1729771845416,-415.373519,0.0002559,7]
[340746553,1729771845427,-166.593986,0.0002559,7]
[340746555,1729771845439,-166.593986,0.0002559,7]
[340746557,1729771845451,-166.593986,0.0002559,7]
[340746559,1729771845462,-166.593986,0.0002559,7]
[340746561,1729771845472,-151.0,0.0002559,7]
[340746563,1729771845482,-9494.27590931,0.0002559,3]
[340746790,1729772080637,546.74672462,0.00016,2]
[340746791,1729772088773,273.37336231,0.00016,2]
[340746792,1729772096613,273.37336231,0.00016,2]
[340746793,1729772105079,273.37336231,0.00016,2]
[340746794,1729772128547,273.37336231,0.00016,2]
[340746795,1729772136641,273.37336231,0.00016,2]
[340746796,1729772145269,273.37336231,0.00016,2]
[340746797,1729772154225,273.37336231,0.00016,2]
[340746798,1729772162531,273.37336231,0.00016,2]
[340746799,1729772171028,273.37336231,0.00016,2]
[340746800,1729772179965,546.74672462,0.00016,2]
[340746801,1729772188121,546.74672462,0.00016,2]
[340746802,1729772196528,273.37336231,0.00016,2]
[340746803,1729772204542,273.37336231,0.00016,2]
[340746804,1729772212413,273.37336231,0.00016,2]
[340746805,1729772221161,273.37336231,0.00016,2]
[340746808,1729772229053,273.37336231,0.00016,2]
[340746809,1729772237219,273.37336231,0.00016,2]
[340746818,1729772245888,273.37336231,0.00016,2]
[340746819,1729772253935,273.37336231,0.00016,2]
[340746820,1729772261981,273.37336231,0.00016,2]
[340746823,1729772270010,273.37336231,0.00016,2]
[340746824,1729772278226,273.37336231,0.00016,2]
[340746825,1729772286284,273.37336231,0.00016,2]
[340746826,1729772294504,273.37336231,0.00016,2]
[340746827,1729772302374,273.37336231,0.00016,2]
[340746828,1729772310518,273.37336231,0.00016,2]
[340746829,1729772319442,273.37336231,0.00016,2]
[340746834,1729772327551,273.37336231,0.00016,2]
[340746835,1729772335496,273.37336231,0.00016,2]
[340746836,1729772343690,273.37336231,0.00016,2]
[340746837,1729772351626,273.37336231,0.00016,2]
[340746838,1729772359743,273.37336231,0.00016,2]
[340746839,1729772368094,273.37336231,0.00016,2]
[340746840,1729772391197,273.37336231,0.00016,2]
[340746841,1729772399062,273.37336231,0.00016,2]
[340746842,1729772407703,273.37336231,0.00016,2]
[340746843,1729772415698,273.37336231,0.00016,2]
[340746844,1729772423754,273.37336231,0.00016,2]
[340746845,1729772432148,273.37336231,0.00016,2]
[340746846,1729772440242,273.37336231,0.00016,2]
[340746847,1729772449087,273.37336231,0.00016,2]
[340746848,1729772457291,273.37336231,0.00016,2]
[340746849,1729772465207,273.37336231,0.00016,2]
[340746850,1729772473378,273.37336231,0.00016,2]
[340746851,1729772481194,273.37336231,0.00016,2]
[340746852,1729772490296,273.37336231,0.00016,2]
[340746853,1729772498373,273.37336231,0.00016,2]
[340746854,1729772506434,273.37336231,0.00016,2]
[340746855,1729772514287,273.37336231,0.00016,2]
[340746856,1729772524062,273.37336231,0.00016,2]
[340746857,1729772532469,546.74672462,0.00016,2]
[340746858,1729772540541,546.74672462,0.00016,2]
[340746859,1729772548313,273.37336231,0.00016,2]
[340746860,1729772556408,273.37336231,0.00016,2]
[340746861,1729772564235,273.37336231,0.00016,2]
[340746862,1729772572629,273.37336231,0.00016,2]
[340746863,1729772580584,273.37336231,0.00016,2]
[340746864,1729772588617,273.37336231,0.00016,2]
[340746865,1729772596477,273.37336231,0.00016,2]
[340746866,1729772604874,273.37336231,0.00016,2]
[340746867,1729772612274,273.37336231,0.00016,2]
[340746868,1729772620984,273.37336231,0.00016,2]
[340746869,1729772628830,273.37336231,0.00016,2]
[340746870,1729772637272,273.37336231,0.00016,2]
[340746871,1729772645484,273.37336231,0.00016,2]
[340746872,1729772646051,500.0,0.00019,15]
[340746873,1729772654110,273.37336231,0.00016,2]
[340746874,1729772669551,273.37336231,0.00016,2]
[340746875,1729772685863,273.37336231,0.00016,2]
[340746876,1729772701096,273.37336231,0.00016,2]
[340746891,1729772716966,273.37336231,0.00016,2]
[340746892,1729772722179,500.0,0.00019,15]
[340746893,1729772732656,273.37336231,0.00016,2]
[340746894,1729772735066,500.0,0.00019,15]
[340746895,1729772748504,273.37336231,0.00016,2]
[340746896,1729772764337,273.37336231,0.00016,2]
[340746897,1729772808898,273.37336231,0.00016,2]
[340746898,1729772825241,273.37336231,0.00016,2]
[340746899,1729772840533,273.37336231,0.00016,2]
[340746900,1729772855805,273.37336231,0.00016,2]
[340746901,1729772871259,273.37336231,0.00016,2]
[340746950,1729772887033,273.37336231,0.00016,2]
[340746971,1729772900127,214.17657231,0.000123,2]
[340746977,1729772902759,273.37336231,0.00016,2]
[340747004,1729772918214,273.37336231,0.00016,2]
[340747008,1729772934139,273.37336231,0.00016,2]
[340747014,1729772951603,273.37336231,0.00016,2]
[340747018,1729772959119,182.122739,0.00013973,2]
[340747019,1729772967457,273.37336231,0.00016,2]
[340747020,1729772982786,273.37336231,0.00016,2]
[340747025,1729772998662,273.37336231,0.00016,2]
[340747026,1729773013951,273.37336231,0.00016,2]
[340747078,1729773032497,-354.43296337,0.0002,2]
[340747147,1729773038805,-1292.95750264,0.0002,2]
[340747148,1729773038820,-3793.60953399,0.0002,2]
[340747149,1729773038835,-160.609006,0.00021826,2]
[340747150,1729773038846,-250.0,0.00022235,2]
[340747151,1729773038859,-3000.0,0.00022336,2]
[340747152,1729773038871,-177.216487,0.00022337,2]
[340747153,1729773038880,-1089.4811394,0.00022378,2]
[340747154,1729773038889,-177.216487,0.00023501,2]
[340747155,1729773038898,-253.05758548,0.00024323,2]
[340747156,1729773038910,-24900.0,0.00024324,2]
[340747157,1729773038919,-3609.0475152,0.00024324,2]
[340747158,1729773038929,-230.0,0.000244,3]
[340747159,1729773038939,-529.4026764,0.00024605,2]
[340747160,1729773038948,-527.0,0.00024656,2]
[340747161,1729773038957,-250.0,0.0002487,2]
[340747162,1729773038966,-500.0,0.00025,30]
[340747163,1729773038976,-610.81332044,0.00025,30]
[340747259,1729773046556,-1180.61,0.00024656,2]
[340747260,1729773046566,-75.57771429,0.00025,30]
[340747261,1729773046576,-529.4026764,0.00025105,2]
[340747262,1729773046586,-246.692,0.00025517,10]
[340747263,1729773046598,-2396.0,0.00025543,2]
[340747264,1729773046609,-529.4026764,0.00025605,2]
[340747265,1729773046619,-230.0,0.0002576,7]
[340747266,1729773046630,-500.0,0.00025892,9]
[340747267,1729773046639,-500.0,0.00025892,9]
[340747268,1729773046649,-150.057,0.00025898,2]
[340747269,1729773046659,-150.28,0.00025898,2]
[340747270,1729773046669,-2000.0,0.00026,20]
[340747271,1729773046679,-502.87263478,0.00026,2]
[340747274,1729773472923,193.333333,0.00013973,2]
[340747275,1729773517961,10000.0,0.00022,60]
[340747276,1729773536058,10000.0,0.00022,60]
[340747277,1729773557961,9997.14,0.00022,60]
[340747278,1729773559038,230.98029269,0.00016,2]
[340747285,1729773975269,500.0,0.00019,15]
[340747286,1729773984257,182.122739,0.00013973,2]
[340747384,1729774238862,-250.0000006,0.00021918,2]
[340747386,1729774238872,-3000.0,0.00023224,2]
[340747388,1729774238882,-449.28,0.000234,2]
[340747390,1729774238892,-818.02424286,0.0002418,2]
[340747392,1729774238901,-500.0,0.000242,2]
[340747394,1729774238911,-300.0,0.00024271,2]
[340747396,1729774238921,-300.0,0.00024271,2]
[340747398,1729774238933,-385.01324732,0.00024272,2]
[340747400,1729774238943,-21419.54301256,0.00024272,2]
[340747403,1729774238962,-3480.45698744,0.00024272,2]
[340747404,1729774238972,-178.445782,0.0002428,2]
[340747405,1729774238982,-216.0,0.000244,2]
[340747406,1729774238992,-178.445782,0.00024597,2]
[340747407,1729774239001,-500.0,0.000247,2]
[340747408,1729774239012,-500.0,0.000247,2]
[340747409,1729774239021,-178.445782,0.00024913,2]
[340747410,1729774239031,-500.0,0.00025,30]
[340747412,1729774239042,-500.0,0.000252,2]
[340747413,1729774239053,-178.445782,0.00025229,2]
[340747414,1729774239063,-818.02424285,0.00025426,2]
[340747415,1729774239073,-197.354,0.00025502,10]
[340747416,1729774239084,-178.445782,0.00025546,2]
[340747417,1729774239094,-8319.74818958,0.00025562,2]
[340747418,1729774239104,-527.0,0.00025656,2]
[340747419,1729774239114,-1151.0,0.00025656,2]
[340747420,1729774239127,-2396.0,0.00025656,2]
[340747421,1729774239137,-567.626152,0.000257,2]
[340747422,1729774239147,-216.0,0.0002576,20]
[340747423,1729774239157,-351.5822136,0.0002578,2]
[340747424,1729774239167,-537.55269612,0.00025892,9]
[340747425,1729774239181,-250.70163427,0.00025892,9]
[340747426,1729774239192,-15511.042179,0.00025986,4]
[340747427,1729774239203,-1505.46450069,0.00025986,4]
[340747428,1729774239218,-3112.4208254,0.00025986,4]
[340747475,1729774244318,-478.3249995,0.00025986,4]
[340747476,1729774244331,-33895.204898,0.00025986,4]
[340747477,1729774244345,-299.84398651,0.00025986,4]
[340747478,1729774244356,-500.0,0.00025995,2]
[340747479,1729774244366,-500.0,0.00025995,2]
[340747480,1729774244376,-110.15611349,0.00025995,2]
[340747481,1729774244388,-329.78143766,0.00025995,2]
[340747482,1729774244409,-60.06244885,0.00025995,2]
[340747483,1729774244419,-500.0,0.00025995,2]
[340747484,1729774244429,-500.0,0.00025995,2]
[340747485,1729774244438,-500.0,0.00025995,2]
[340747486,1729774244448,-500.0,0.00025995,2]
[340747487,1729774244458,-500.0,0.00025995,2]
[340747488,1729774244468,-500.0,0.00025995,2]
[340747489,1729774244478,-176.23724645,0.00025995,2]
[340747490,1729774244491,-495.4075391,0.00025995,2]
[340747491,1729774244500,-4055.92678452,0.00025996,2]
[340747498,1729774246609,-182.74647387,0.00025899,2]
[340747499,1729774246619,-295.02,0.00025986,3]
[340747500,1729774246629,-3267.84386502,0.00025996,2]
[340747501,1729774246641,-1056.65227158,0.00025996,2]
[340747502,1729774521572,188.533333,0.00013973,2]
[340747510,1729775136505,187.251214,0.00013973,2]
[340748065,1729775437980,-250.0,0.00021918,2]
[340748067,1729775437990,-3000.0,0.00023494,2]
[340748069,1729775437999,-300.0,0.00023691,2]
[340748071,1729775438009,-24900.0,0.00023692,2]
[340748073,1729775438019,-169.301387,0.00024182,2]
[340748075,1729775438029,-169.301387,0.00024296,2]
[340748077,1729775438038,-195.0,0.000244,2]
[340748079,1729775438048,-169.301387,0.00024411,2]
[340748081,1729775438057,-169.301387,0.00024525,2]
[340748083,1729775438066,-169.301387,0.0002464,2]
[340748085,1729775438076,-495.49127387,0.00024697,2]
[340748087,1729775438085,-613.51818219,0.00024697,2]
[340748089,1729775438095,-507.05664,0.000247,2]
[340748091,1729775438104,-169.301387,0.00024755,2]
[340748093,1729775438113,-169.301387,0.00024869,2]
[340748095,1729775438123,-169.301387,0.00024984,2]
[340748097,1729775438133,-250.48,0.00025,2]
[340748099,1729775438143,-169.301387,0.00025098,2]
[340748101,1729775438153,-169.301387,0.00025213,2]
[340748103,1729775438162,-500.0,0.000253,7]
[340748105,1729775438172,-169.301387,0.00025327,2]
[340748107,1729775438181,-169.301387,0.00025442,2]
[340748109,1729775438190,-500.0,0.000255,7]
[340748111,1729775438200,-157.883,0.00025543,10]
[340748113,1729775438209,-150.94,0.00025656,2]
[340748115,1729775438219,-531.179,0.00025656,2]
[340748117,1729775438228,-1152.0,0.00025656,2]
[340748119,1729775438238,-2396.0,0.00025656,2]
[340748121,1729775438247,-8891.17465365,0.00025687,2]
[340748123,1729775438258,-420.0,0.00025699,2]
[340748125,1729775438268,-195.0,0.0002576,20]
[340748127,1729775438279,-568.45743713,0.00025886,2]
[340748129,1729775438288,-280.07154641,0.00025886,2]
[340748130,1729775438299,-613.51818213,0.0002589,2]
[340748131,1729775438309,-7972.32443541,0.0002598,4]
[340748132,1729775438318,-7972.32443541,0.00025986,4]
[340748133,1729775438327,-245.85,0.00025986,3]
[340748134,1729775438337,-737.57,0.00025986,3]
[340748135,1729775438347,-10702.85558171,0.0002599,2]
[340748136,1729775438356,-500.0,0.00025995,2]
[340748138,1729775438366,-54469.68898809,0.00025996,2]
[340748141,1729775438382,-8497.15332235,0.00025996,2]
[340748143,1729775438397,-883.76586375,0.00025996,2]
[340748145,1729775438409,-669.19392819,0.00025996,2]
[340748341,1729775445768,-5368.1423295,0.00025996,2]
[340748342,1729775445779,-150.33664446,0.00025999,2]
[340748343,1729775445788,-1787.07715339,0.00025999,2]
[340748344,1729775445798,-202.90624768,0.00026,2]
[340748345,1729775445809,-607.89362525,0.00026038,2]
[340748346,1729775445820,-280.07154641,0.0002617,2]
[340748347,1729775445829,-500.0,0.00026269,2]
[340748348,1729775445839,-280.07154641,0.00026455,2]
[340748349,1729775445849,-500.0,0.00026543,2]
[340748350,1729775445859,-150.112233,0.000266,10]
[340748351,1729775445868,-150.112233,0.000267,10]
[340748352,1729775445881,-280.07154641,0.00026739,2]
[340748353,1729775445890,-150.112233,0.000268,7]
[340748354,1729775445899,-150.112233,0.000268,9]
[340748355,1729775445909,-500.0,0.00026817,2]
[340748356,1729775445919,-195.0,0.0002698,2]
[340748357,1729775445928,-2000.0,0.00027,15]
[340748358,1729775445938,-150.112233,0.00027,6]
[340748359,1729775445948,-150.112233,0.00027,8]
[340748360,1729775445957,-280.07154641,0.00027023,2]
[340748361,1729775445967,-4500.98,0.0002708,2]
[340748362,1729775445976,-613.51818213,0.00027084,2]
[340748363,1729775445985,-500.0,0.00027091,2]
[340748364,1729775445995,-241.8041385,0.00027092,2]
[340748365,1729775446004,-332.8230599,0.00027092,2]
[340748366,1729775446013,-151.0,0.00027093,7]
[340748367,1729775446022,-6027.55903555,0.00027093,4]
[340748368,1729775446039,-1944.76539986,0.00027093,4]
[340748369,1729775446049,-150.112233,0.000271,7]
[340748370,1729775446059,-150.112233,0.000271,5]
[340748371,1729775446069,-151.0,0.00027103,7]
[340748372,1729775446078,-151.0,0.00027103,7]
[340748373,1729775446088,-186.651242,0.00027103,7]
[340748374,1729775446098,-186.651242,0.00027103,7]
[340748375,1729775446108,-151.0,0.00027103,7]
[340748376,1729775446118,-151.494073,0.00027103,7]
[340748377,1729775446128,-151.0,0.00027103,7]
[340748378,1729775446137,-151.0,0.00027103,7]
[340748379,1729775446147,-151.0,0.00027103,7]
[340748380,1729775446158,-341.611246,0.00027103,7]
[340748381,1729775446168,-341.611246,0.00027103,7]
[340748382,1729775446178,-1179.677368,0.00027103,7]
[340748383,1729775446188,-1179.677368,0.00027103,7]
[340748384,1729775446198,-151.0,0.00027103,7]
[340748385,1729775446207,-474.559425,0.00027103,7]
[340748386,1729775446217,-474.559425,0.00027103,7]
[340748387,1729775446227,-151.0,0.00027103,7]
[340748388,1729775446236,-151.0,0.00027103,7]
[340748389,1729775446247,-7972.32443541,0.00027113,4]
[340748390,1729775446258,-195.0,0.0002712,3]
[340748391,1729775446269,-1550.80693717,0.00027123,2]
[340748395,1729775657176,160.0,0.00013973,2]
[340748406,1729776171434,187.251214,0.00013973,2]
[340748569,1729776632024,-449.17748,0.00023497,2]
[340748617,1729776640158,-695.50005,0.00023497,2]
[340748630,1729776643261,-1855.32247,0.00023497,2]